fUST/lending_fUST_20240513
["ID","MTS","AMOUNT","RATE_DAILY","PERIOD"]
[326929271,1715604349356,-500.0,0.00019999,2]
[326929272,1715604349377,-500.0,0.00019999,2]
[326929273,1715604349398,-1010.17148011,0.0002,4]
[326929274,1715604349419,-12686.81154161,0.0002,2]
[326929308,1715604632787,-540.0,0.00018899,2]
[326929309,1715604632797,-150.0,0.000189,2]
[326929311,1715604632807,-174.301399,0.00019635,2]
[326929313,1715604632816,-1258.01929176,0.000199,2]
[326929315,1715604632826,-514.92975138,0.0002,2]
[326929317,1715604632838,-1670.99319192,0.0002,2]
[326929319,1715604632850,-1284.5294023,0.0002,2]
[326929320,1715604632862,-1453.99588173,0.0002,2]
[326929321,1715604632874,-1376.27484425,0.0002,2]
[326929322,1715604632887,-2761.42464324,0.0002,2]
[326929323,1715604632899,-7003.60810354,0.0002,2]
[326929325,1715604632911,-433.38723087,0.0002,2]
[326929327,1715604632924,-738.32909802,0.0002,2]
[326929366,1715604637948,-1757.16259521,0.0002,2]
[326929388,1715604638150,-1259.41545977,0.0002,2]
[326929390,1715604638162,-5766.26047243,0.0002,2]
[326929392,1715604638173,-2565.2895717,0.0002,2]
[326929443,1715604640209,-803.50534785,0.0002,2]
[326929444,1715604640221,-9830.17479549,0.0002,2]
[326929445,1715604640232,-752.84226243,0.0002,2]
[326929446,1715604640279,-1453.05029489,0.0002,2]
[326929447,1715604640288,-7107.26846787,0.0002,2]
[326929448,1715604640298,-7077.90810985,0.00020909,2]
[326929449,1715604640307,-2511.02980065,0.00020909,2]
[326929450,1715604640321,-488.97019935,0.00020909,2]
[326929451,1715604640330,-3000.0,0.00020909,2]
[326929452,1715604640340,-2919.30726096,0.00020909,2]
[326929453,1715604640354,-80.69273904,0.00020909,2]
[326929454,1715604640363,-3000.0,0.00020909,2]
[326929455,1715604640373,-2327.34639653,0.00020909,2]
[326929456,1715604640386,-696.34341017,0.00020909,2]
[326929457,1715604640396,-251.89977688,0.00020909,2]
[326929458,1715604640406,-500.0,0.00020909,2]
[326929459,1715604640415,-1730.20061013,0.0002091,2]
[326929460,1715604640424,-158.20036641,0.0002091,2]
[326929461,1715604640433,-291.14020735,0.0002091,2]
[326929462,1715604640443,-192.8018309,0.0002091,2]
[326929463,1715604640452,-247.86974193,0.0002091,2]
[326929464,1715604640462,-500.0,0.0002091,2]
[326929465,1715604640471,-198.67773811,0.0002091,2]
[326929466,1715604640480,-500.0,0.0002091,2]
[326929467,1715604640490,-277.10727745,0.0002091,2]
[326929468,1715604640502,-222.89272255,0.0002091,2]
[326929469,1715604640511,-500.0,0.0002091,2]
[326929470,1715604640520,-483.1554,0.0002091,2]
[326929471,1715604640530,-500.0,0.0002091,2]
[326929472,1715604640539,-291.64151337,0.0002091,2]
[326929473,1715604640550,-208.35848663,0.0002091,2]
[326929474,1715604640559,-500.0,0.0002091,2]
[326929475,1715604640569,-500.0,0.0002091,2]
[326929476,1715604640578,-427.87577054,0.0002091,2]
[326929477,1715604640588,-500.0,0.0002091,2]
[326929478,1715604640597,-498.56598628,0.0002091,2]
[326929479,1715604640607,-500.0,0.0002091,2]
[326929480,1715604640616,-500.0,0.0002091,2]
[326929481,1715604640626,-500.0,0.0002091,2]
[326929482,1715604640636,-500.0,0.0002091,2]
[326929483,1715604640648,-500.0,0.0002091,2]
[326929484,1715604640658,-2294.15485031,0.00020911,2]
[326929485,1715604640765,-334.11671565,0.00020911,2]
[326929486,1715604640776,-10071.60276902,0.00020911,2]
[326929506,1715604643409,-32661.23356345,0.00020911,2]
[326929507,1715604643421,-2865.0,0.00020911,2]
[326929524,1715604646003,-360.0,0.0002091,2]
[326929525,1715604646012,-2514.5013947,0.00020911,2]
[326929526,1715604646309,-746.4,0.00020911,2]
[326929527,1715604646320,-3457.00671515,0.00020911,2]
[326929531,1715604709591,465.65083022,9.999e-05,2]
[326929570,1715605288181,600.0,9.999e-05,2]
[326929581,1715605544658,895.03027308,0.00018,2]
[326929588,1715605637159,-237.03580854,0.00018421,2]
[326929591,1715605695537,1600.0,0.00018,2]
[326929592,1715605719125,24900.0,0.00017698,2]
[326929593,1715605746170,150.0,0.0002,10]
[326929620,1715605832098,-262.96419146,0.00018421,2]
[326929623,1715605832110,-203.042459,0.00018422,2]
[326929625,1715605832121,-372.31624743,0.00018695,2]
[326929627,1715605832132,-9390.44266503,0.00018696,2]
[326929629,1715605832143,-421.09614467,0.00018697,2]
[326929631,1715605832155,-3154.8140198,0.00018697,2]
[326929633,1715605832166,-237.03580854,0.00018698,2]
[326929636,1715605832177,-7221.64759886,0.000187,2]
[326929638,1715605832188,-1100.76688029,0.00019078,2]
[326929640,1715605832199,-177.755439,0.00019178,2]
[326929642,1715605832210,-522.2029534,0.000199,2]
[326929644,1715605832221,-500.0,0.00019907,2]
[326929646,1715605832233,-500.0,0.00019907,2]
[326929649,1715605832244,-500.0,0.00019907,2]
[326929651,1715605832255,-500.0,0.00019907,2]
[326929653,1715605832267,-500.0,0.00019907,2]
[326929655,1715605832278,-500.0,0.00019907,2]
[326929657,1715605832289,-160.02549713,0.00019907,2]
[326929659,1715605832300,-500.0,0.00019907,2]
[326929674,1715605832311,-500.0,0.00019907,2]
[326929676,1715605832450,-500.0,0.00019907,2]
[326929678,1715605832461,-500.0,0.00019907,2]
[326929680,1715605832471,-500.0,0.00019907,2]
[326929682,1715605832480,-500.0,0.00019907,2]
[326929684,1715605832489,-500.0,0.00019907,2]
[326929686,1715605832499,-500.0,0.00019907,2]
[326929688,1715605832507,-500.0,0.00019907,2]
[326929690,1715605832517,-500.0,0.00019907,2]
[326929692,1715605832526,-500.0,0.00019907,2]
[326929694,1715605832535,-500.0,0.00019907,2]
[326929696,1715605832545,-500.0,0.00019907,2]
[326929697,1715605832554,-500.0,0.00019907,2]
[326929699,1715605832563,-500.0,0.00019907,2]
[326929701,1715605832573,-500.0,0.00019907,2]
[326929703,1715605832582,-500.0,0.00019907,2]
[326929705,1715605832591,-500.0,0.00019907,2]
[326929707,1715605832600,-500.0,0.00019907,2]
[326929709,1715605832610,-500.0,0.00019907,2]
[326929711,1715605832619,-500.0,0.00019907,2]
[326929713,1715605832628,-500.0,0.00019907,2]
[326929715,1715605832637,-500.0,0.00019907,2]
[326929717,1715605832646,-500.0,0.00019907,2]
[326929719,1715605832656,-500.0,0.00019907,2]
[326929721,1715605832665,-500.0,0.00019907,2]
[326929723,1715605832674,-500.0,0.00019907,2]
[326929724,1715605832683,-500.0,0.00019907,2]
[326929725,1715605832693,-500.0,0.00019907,2]
[326929727,1715605832702,-500.0,0.00019907,2]
[326929728,1715605832711,-500.0,0.00019907,2]
[326929729,1715605832720,-500.0,0.00019907,2]
[326929730,1715605832729,-500.0,0.00019907,2]
[326929731,1715605832740,-500.0,0.00019907,2]
[326929732,1715605832749,-500.0,0.00019907,2]
[326929733,1715605832758,-528.7928208,0.00019907,2]
[326929734,1715605832768,-500.0,0.00019907,2]
[326929735,1715605832777,-500.0,0.00019907,2]
[326929736,1715605832787,-500.0,0.00019907,2]
[326929737,1715605832796,-500.0,0.00019907,2]
[326929738,1715605832805,-500.0,0.00019907,2]
[326929739,1715605832814,-500.0,0.00019907,2]
[326929740,1715605832824,-500.0,0.00019907,2]
[326929741,1715605832833,-500.0,0.00019907,2]
[326929742,1715605832843,-500.0,0.00019907,2]
[326929743,1715605832852,-500.0,0.00019907,2]
[326929744,1715605832862,-500.0,0.00019907,2]
[326929745,1715605832872,-500.0,0.00019907,2]
[326929746,1715605832881,-500.0,0.00019907,2]
[326929747,1715605832891,-500.0,0.00019907,2]
[326929748,1715605832900,-602.87928208,0.00019907,2]
[326929749,1715605832909,-500.0,0.00019907,2]
[326929750,1715605832918,-500.0,0.00019907,2]
[326929751,1715605832927,-500.0,0.00019907,2]
[326929752,1715605832937,-500.0,0.00019907,2]
[326929753,1715605832946,-500.0,0.00019907,2]
[326929754,1715605832955,-500.0,0.00019907,2]
[326929755,1715605832964,-4297.91937809,0.00019908,2]
[326929756,1715605832978,-12590.02087071,0.00019908,2]
[326929790,1715605838232,-5739.28679862,0.00019908,2]
[326929868,1715605840381,-6867.60124497,0.00019908,2]
[326929880,1715605840475,-1157.75539937,0.00019908,2]
[326929882,1715605840503,-3689.81675845,0.0002,2]
[326929884,1715605840516,-581.68038362,0.0002,2]
[326929886,1715605840529,-2835.7713258,0.0002,2]
[326929888,1715605840540,-208.42845868,0.00020643,2]
[326929890,1715605840550,-1320.93071001,0.00020907,2]
[326929893,1715605840561,-317.41968162,0.00020908,2]
[326929895,1715605840571,-180.0,0.00020909,2]
[326929898,1715605840581,-162.55997882,0.00020909,2]
[326929900,1715605840591,-613.77482028,0.00020909,2]
[326929902,1715605840602,-239.28469197,0.00020909,2]
[326929904,1715605840612,-566.90092287,0.00020909,2]
[326929905,1715605840622,-169.69236626,0.0002091,2]
[326929907,1715605840632,-200.0,0.0002091,2]
[326929909,1715605840642,-2097.40769725,0.0002091,2]
[326929911,1715605840652,-500.0,0.00020913,2]
[326929912,1715605840661,-500.0,0.00020913,2]
[326929914,1715605840671,-500.0,0.00020913,2]
[326929916,1715605840681,-154.25944634,0.00020913,2]
[326929918,1715605840691,-500.05640388,0.00022,4]
[326929920,1715605840700,-150.0,0.00022608,2]
[326929921,1715605840710,-150.0,0.00022613,2]
[326929923,1715605840719,-160.877038,0.00023562,2]
[326929925,1715605840730,-189.961285,0.00023562,2]
[326929927,1715605840740,-164.535711,0.00023562,2]
[326929929,1715605840751,-522.20295336,0.000244,2]
[326929930,1715605840762,-150.0,0.00024757,2]
[326929932,1715605840772,-150.0,0.00024762,2]
[326929934,1715605840783,-244.0788,0.00026,2]
[326929936,1715605840792,-5002.52342594,0.0002661,30]
[326929937,1715605840802,-150.0,0.00026906,3]
[326929939,1715605840812,-150.0,0.0002691,3]
[326929941,1715605840822,-151.0,0.0002699,2]
[326929943,1715605840831,-151.0,0.0002699,2]
[326929945,1715605840840,-9744.44,0.0002699,3]
[326929947,1715605840850,-8120.36,0.0002699,3]
[326929949,1715605840860,-274.27439677,0.00027,30]
[326929950,1715605840870,-7036.95569167,0.00027,2]
[326929952,1715605840884,-501.485992,0.00027,2]
[326930065,1715605846435,-4428.30083228,0.00020913,2]
[326930066,1715605846445,-32197.26190211,0.00027,2]
[326930067,1715605846454,-151.0,0.00027,2]
[326930068,1715605846462,-162.748083,0.00027,2]
[326930069,1715605846471,-151.0,0.00027,2]
[326930070,1715605846480,-151.0,0.00027,2]
[326930071,1715605846489,-209.795883,0.00027,2]
[326930072,1715605846498,-209.795883,0.00027,2]
[326930073,1715605846506,-151.0,0.00027,2]
[326930074,1715605846515,-151.0,0.00027,2]
[326930075,1715605846524,-163.890621,0.00027,2]
[326930076,1715605846628,-163.890621,0.00027,2]
[326930077,1715605846638,-151.0,0.00027,2]
[326930078,1715605846648,-151.0,0.00027,2]
[326930079,1715605846658,-230.828511,0.00027,2]
[326930080,1715605846667,-230.828511,0.00027,2]
[326930081,1715605846677,-151.0,0.00027,2]
[326930082,1715605846686,-151.0,0.00027,2]
[326930083,1715605846695,-151.0,0.00027,2]
[326930084,1715605846704,-189.179924,0.00027,2]
[326930085,1715605846714,-233.807784,0.00027,2]
[326930086,1715605846723,-233.807784,0.00027,2]
[326930087,1715605846733,-500.0,0.0002739,2]
[326930088,1715605846742,-3000.0,0.00027397,2]
[326930089,1715605846751,-154.75239617,0.00027397,2]
[326930090,1715605846761,-353.57436039,0.00027397,2]
[326930091,1715605846770,-4000.115351,0.00027397,10]
[326930092,1715605846785,-1066.47,0.00027397,2]
[326930093,1715605846799,-1066.47,0.00027397,2]
[326930094,1715605846809,-1066.47,0.00027397,2]
[326930095,1715605846818,-203.042459,0.00027633,2]
[326930096,1715605846827,-297.77571828,0.00028,2]
[326930097,1715605846837,-522.20295336,0.000289,2]
[326930098,1715605846846,-150.0,0.00028951,2]
[326930099,1715605846855,-150.0,0.00029059,3]
[326930100,1715605846868,-745.84390001,0.00029235,3]
[326930101,1715605846877,-281.0,0.000295,2]
[326930102,1715605846887,-237.503279,0.00029531,2]
[326930103,1715605846896,-189.961285,0.00029531,2]
[326930104,1715605846905,-1000.0,0.00029723,2]
[326930105,1715605846914,-1000.0,0.00029768,2]
[326930106,1715605846923,-1000.0,0.00029786,2]
[326930107,1715605846933,-1000.0,0.0002985,2]
[326930108,1715605846942,-1000.0,0.0002988,2]
[326930109,1715605846951,-1000.0,0.0002993,2]
[326930110,1715605846961,-244.33003923,0.00029961,2]
[326930111,1715605846970,-151.0,0.0002997,2]
[326930112,1715605846979,-151.0,0.0002997,2]
[326930113,1715605846990,-151.0,0.0002997,2]
[326930114,1715605847001,-151.0,0.0002997,2]
[326930115,1715605847010,-151.0,0.0002997,2]
[326930116,1715605847020,-1066.47,0.00029999,2]
[326930117,1715605847035,-209.795883,0.00029999,2]
[326930118,1715605847045,-209.795883,0.00029999,2]
[326930119,1715605847054,-151.0,0.00029999,2]
[326930120,1715605847064,-151.0,0.00029999,2]
[326930121,1715605847073,-163.890621,0.00029999,2]
[326930122,1715605847083,-163.890621,0.00029999,2]
[326930123,1715605847092,-151.0,0.00029999,2]
[326930124,1715605847101,-151.0,0.00029999,2]
[326930125,1715605847110,-230.828511,0.00029999,2]
[326930126,1715605847119,-230.828511,0.00029999,2]
[326930127,1715605847129,-151.0,0.00029999,2]
[326930128,1715605847138,-151.0,0.00029999,2]
[326930129,1715605847147,-151.0,0.00029999,2]
[326930130,1715605847157,-233.807784,0.00029999,2]
[326930131,1715605847166,-233.807784,0.00029999,2]
[326930132,1715605847175,-381.27889825,0.0003,10]
[326930133,1715605847184,-565.97584437,0.0003,2]
[326930134,1715605847194,-151.0,0.0003,2]
[326930135,1715605847203,-589.0,0.000304,2]
[326930136,1715605847212,-150.175,0.00030679,2]
[326930137,1715605847222,-150.0,0.00030679,2]
[326930138,1715605847231,-495.0,0.00030679,2]
[326930139,1715605847241,-2500.0,0.00031,2]
[326930140,1715605847250,-235.59984398,0.00031,2]
[326930141,1715605847259,-235.59984398,0.00031,2]
[326930142,1715605847268,-235.59984398,0.00031,2]
[326930143,1715605847279,-235.59984398,0.00031,2]
[326930144,1715605847289,-235.59984398,0.00031,2]
[326930145,1715605847298,-235.59984398,0.00031,2]
[326930146,1715605847307,-235.59984398,0.00031,2]
[326930147,1715605847316,-235.59984398,0.00031,2]
[326930148,1715605847325,-235.59984398,0.00031,2]
[326930149,1715605847334,-235.59984398,0.00031,2]
[326930150,1715605847343,-235.59984398,0.00031,2]
[326930151,1715605847353,-235.59984398,0.00031,2]
[326930152,1715605847362,-235.59984398,0.00031,2]
[326930153,1715605847371,-235.59984398,0.00031,2]
[326930154,1715605847380,-235.59984398,0.00031,2]
[326930155,1715605847390,-235.59984398,0.00031,2]
[326930156,1715605847399,-235.59984398,0.00031,2]
[326930157,1715605847408,-235.59984398,0.00031,2]
[326930158,1715605847417,-235.59984398,0.00031,2]
[326930159,1715605847427,-235.59984,0.00031,2]
[326930160,1715605847436,-150.0,0.00031207,5]
[326930161,1715605847445,-160.877038,0.00031663,2]
[326930162,1715605847454,-448.03728289,0.00032,4]
[326930163,1715605847464,-1066.47,0.00033205,2]
[326930164,1715605847475,-1321.71145491,0.00033206,15]
[326930165,1715605847484,-150.0,0.00033356,5]
[326930166,1715605847493,-522.20295336,0.000334,2]
[326930167,1715605847503,-150.0,0.00033679,2]
[326930168,1715605847512,-495.0,0.00033679,2]
[326930169,1715605847522,-268.21798762,0.00034,5]
[326930170,1715605847531,-467.4319829,0.00034,4]
[326930171,1715605847540,-291.37136184,0.00034,2]
[326930172,1715605847550,-160.0,0.00034,10]
[326930173,1715605847560,-151.0,0.00034548,2]
[326930174,1715605847569,-151.0,0.00034767,2]
[326930175,1715605847578,-151.0,0.00034767,2]
[326930176,1715605847588,-6766.97,0.0003489,3]
[326930177,1715605847597,-9650.30699992,0.000349,15]
[326930178,1715605847606,-12080.43271466,0.000349,2]
[326930179,1715605847615,-151.0,0.000349,2]
[326930180,1715605847624,-200.494054,0.000349,2]
[326930181,1715605847633,-209.795883,0.000349,2]
[326930182,1715605847642,-209.795883,0.000349,2]
[326930183,1715605847651,-152.649571,0.000349,2]
[326930184,1715605847660,-151.0,0.000349,2]
[326930185,1715605847670,-163.890621,0.000349,2]
[326930186,1715605847679,-163.890621,0.000349,2]
[326930187,1715605847688,-151.0,0.000349,2]
[326930188,1715605847697,-151.0,0.000349,2]
[326930189,1715605847707,-230.828511,0.000349,2]
[326930190,1715605847716,-230.828511,0.000349,2]
[326930191,1715605847725,-151.0,0.000349,2]
[326930192,1715605847735,-151.0,0.000349,2]
[326930193,1715605847744,-151.0,0.000349,2]
[326930194,1715605847755,-233.807784,0.000349,2]
[326930195,1715605847765,-233.807784,0.000349,2]
[326930196,1715605847775,-164.535711,0.00034904,2]
[326930197,1715605847784,-1066.47,0.00034999,2]
[326930198,1715605847793,-10310.99804873,0.00035,2]
[326930199,1715605847803,-215.47326358,0.00035,4]
[326930200,1715605847813,-5019.0215515,0.00035,4]
[326930201,1715605847822,-397.29031706,0.00035,7]
[326930202,1715605847831,-151.0,0.00035,2]
[326930203,1715605847841,-151.0,0.00035,2]
[326930204,1715605847850,-151.0,0.00035,2]
[326930205,1715605847860,-1181.65554787,0.00035,4]
[326930206,1715605847870,-237.503279,0.00035501,2]
[326930207,1715605847879,-189.961285,0.00035501,2]
[326930208,1715605847890,-150.0,0.00035504,7]
[326930209,1715605847899,-151.0,0.00035616,2]
[326930210,1715605847909,-552.516535,0.00035616,120]
[326930211,1715605847918,-2500.0,0.00036,2]
[326930212,1715605847928,-209.795883,0.00036,2]
[326930213,1715605847938,-209.795883,0.00036,2]
[326930214,1715605847948,-151.0,0.00036,2]
[326930215,1715605847957,-163.890621,0.00036,2]
[326930216,1715605847967,-163.890621,0.00036,2]
[326930217,1715605847976,-151.0,0.00036,2]
[326930218,1715605847987,-151.0,0.00036,2]
[326930219,1715605848000,-230.828511,0.00036,2]
[326930220,1715605848009,-230.828511,0.00036,2]
[326930221,1715605848018,-151.0,0.00036,2]
[326930222,1715605848031,-214.125203,0.00036,2]
[326930223,1715605848040,-151.0,0.00036,2]
[326930224,1715605848050,-233.807784,0.00036,2]
[326930225,1715605848060,-233.807784,0.00036,2]
[326930226,1715605848070,-150.0,0.00036679,2]
[326930227,1715605848080,-495.0,0.00036679,2]
[326930228,1715605848089,-974.26504853,0.00037,2]
[326930229,1715605848099,-1000.0,0.000375,2]
[326930230,1715605848108,-150.0,0.00037653,7]
[326930231,1715605848117,-151.0,0.00037852,2]
[326930232,1715605848127,-151.0,0.00037852,2]
[326930233,1715605848136,-522.20295336,0.000379,2]
[326930234,1715605848146,-1066.47,0.00037999,2]
[326930235,1715605848155,-49141.75248162,0.00038,30]
[326930236,1715605848164,-151.0,0.00038,2]
[326930237,1715605848173,-151.0,0.00038,2]
[326930238,1715605848182,-151.0,0.00038,2]
[326930239,1715605848192,-151.0,0.00038,2]
[326930240,1715605848202,-209.795883,0.00038,2]
[326930241,1715605848212,-209.795883,0.00038,2]
[326930242,1715605848221,-151.0,0.00038,2]
[326930243,1715605848232,-163.890621,0.00038,2]
[326930244,1715605848242,-163.890621,0.00038,2]
[326930245,1715605848251,-151.0,0.00038,2]
[326930246,1715605848261,-151.0,0.00038,2]
[326930247,1715605848272,-230.828511,0.00038,2]
[326930248,1715605848281,-230.828511,0.00038,2]
[326930249,1715605848289,-151.0,0.00038,2]
[326930250,1715605848298,-151.0,0.00038,2]
[326930251,1715605848307,-233.807784,0.00038,2]
[326930252,1715605848316,-233.807784,0.00038,2]
[326930253,1715605848326,-500.0,0.00038356,15]
[326930254,1715605848335,-500.0,0.00038356,15]
[326930255,1715605848344,-500.0,0.00038356,15]
[326930256,1715605848353,-630.12630568,0.00038356,15]
[326930257,1715605848363,-500.0,0.00038356,15]
[326930258,1715605848372,-500.0,0.00038356,15]
[326930259,1715605848382,-500.0,0.00038356,15]
[326930260,1715605848392,-150.0,0.00039679,2]
[326930261,1715605848402,-495.0,0.00039679,2]
[326930262,1715605848413,-1066.47,0.00039725,2]
[326930263,1715605848422,-160.877038,0.00039765,2]
[326930264,1715605848431,-1000.0,0.000398,30]
[326930265,1715605848440,-150.0,0.00039801,7]
[326930266,1715605848449,-403.55519046,0.000399,72]
[326930267,1715605848458,-2301.05973389,0.0004,4]
[326930268,1715605848467,-387.71426355,0.0004,120]
[326930269,1715605848476,-360.68402132,0.0004,2]
[326930270,1715605848485,-167.68060521,0.0004,2]
[326930271,1715605848494,-197.24398457,0.0004,120]
[326930272,1715605848503,-500.0,0.0004,120]
[326930273,1715605848512,-1391.9293175,0.0004,120]
[326930274,1715605848523,-150.06233266,0.0004,2]
[326930275,1715605848532,-2500.0,0.00041,4]
[326930276,1715605848541,-525.71381416,0.00041259,30]
[326930277,1715605848550,-237.503279,0.00041471,2]
[326930278,1715605848559,-189.961285,0.00041471,2]
[326930279,1715605848568,-552.516535,0.00041553,120]
[326930280,1715605848577,-525.71381416,0.00041557,30]
[326930281,1715605848587,-525.71381416,0.00041629,30]
[326930282,1715605848596,-525.71381416,0.00041761,30]
[326930283,1715605848605,-525.71381416,0.0004182,30]
[326930284,1715605848615,-525.71381416,0.00041835,30]
[326930285,1715605848626,-525.71381416,0.00041847,30]
[326930286,1715605848636,-334.17122722,0.000419,39]
[326930287,1715605848645,-334.17122713,0.000419,39]
[326930288,1715605848654,-334.17122713,0.000419,39]
[326930289,1715605848663,-334.17122713,0.000419,39]
[326930290,1715605848674,-334.17122713,0.000419,39]
[326930291,1715605848683,-334.17122713,0.000419,39]
[326930292,1715605848692,-334.17122713,0.000419,39]
[326930293,1715605848701,-334.17122713,0.000419,39]
[326930294,1715605848712,-334.17122713,0.000419,39]
[326930295,1715605848721,-334.17122713,0.000419,39]
[326930296,1715605848732,-359.68260999,0.000419,39]
[326930297,1715605848742,-151.0,0.000419,7]
[326930298,1715605848751,-151.0,0.000419,7]
[326930299,1715605848840,-151.0,0.000419,7]
[326930300,1715605848851,-151.0,0.000419,7]
[326930301,1715605848861,-209.795883,0.000419,7]
[326930302,1715605848871,-209.795883,0.000419,7]
[326930303,1715605848881,-267.35442,0.000419,7]
[326930304,1715605848890,-163.890621,0.000419,7]
[326930305,1715605848899,-163.890621,0.000419,7]
[326930306,1715605848909,-151.0,0.000419,7]
[326930307,1715605848918,-151.0,0.000419,7]
[326930308,1715605848928,-230.828511,0.000419,7]
[326930309,1715605848938,-230.828511,0.000419,7]
[326930310,1715605848947,-151.0,0.000419,2]
[326930311,1715605848956,-151.0,0.000419,7]
[326930312,1715605848966,-233.807784,0.000419,7]
[326930313,1715605848975,-233.807784,0.000419,7]
[326930314,1715605848985,-150.0,0.0004195,30]
[326930315,1715605848998,-150.74373565,0.00042112,2]
[326930316,1715605849008,-525.71381416,0.00042373,30]
[326930317,1715605849017,-525.71381416,0.00042419,30]
[326930318,1715605849028,-159.10601958,0.000425,30]
[326930319,1715605849037,-205.571,0.00042679,2]
[326930320,1715605849046,-301.4874713,0.00042819,4]
[326930321,1715605849056,-525.71381416,0.00042923,30]
[326930322,1715605849068,-525.71381416,0.00042988,30]
[326930323,1715605849077,-168.00249386,0.00043135,2]
[326930324,1715605849087,-525.71381416,0.00043242,30]
[326930325,1715605849098,-525.71381416,0.00043261,30]
[326930326,1715605849108,-4456.39665429,0.000433,30]
[326930327,1715605849117,-1066.47,0.00043313,2]
[326930328,1715605849126,-1066.47,0.00043313,2]
[326930329,1715605849135,-1066.47,0.00043313,2]
[326930330,1715605849144,-1066.47,0.00043313,2]
[326930331,1715605849154,-1066.47,0.00043313,2]
[326930332,1715605849166,-1066.47,0.00043313,2]
[326930333,1715605849177,-1066.47,0.00043313,2]
[326930334,1715605849187,-1066.47,0.00043313,2]
[326930335,1715605849196,-1066.47,0.00043313,2]
[326930336,1715605849206,-1066.47,0.00043313,2]
[326930337,1715605849216,-1066.47,0.00043313,2]
[326930338,1715605849226,-1000.0,0.00043313,5]
[326930339,1715605849235,-1000.0,0.00043313,5]
[326930340,1715605849245,-1000.0,0.00043313,5]
[326930341,1715605849254,-1002.10557099,0.00043313,5]
[326930342,1715605849263,-209.795883,0.00043313,7]
[326930343,1715605849272,-209.795883,0.00043313,7]
[326930344,1715605849281,-163.890621,0.00043313,7]
[326930345,1715605849291,-163.890621,0.00043313,7]
[326930346,1715605849300,-151.0,0.00043313,7]
[326930347,1715605849310,-151.0,0.00043313,7]
[326930348,1715605849321,-230.828511,0.00043313,7]
[326930349,1715605849332,-230.828511,0.00043313,7]
[326930350,1715605849342,-151.0,0.00043313,2]
[326930351,1715605849352,-233.807784,0.00043313,7]
[326930352,1715605849363,-233.807784,0.00043313,7]
[326930353,1715605849372,-151.0,0.00043314,7]
[326930354,1715605849383,-151.0,0.00043314,7]
[326930355,1715605849394,-174.53402,0.00043314,7]
[326930356,1715605849405,-151.0,0.00043314,7]
[326930357,1715605849415,-151.0,0.00043314,7]
[326930358,1715605849425,-209.795883,0.00043314,7]
[326930359,1715605849434,-209.795883,0.00043314,7]
[326930360,1715605849444,-209.795883,0.00043314,7]
[326930361,1715605849454,-209.795883,0.00043314,7]
[326930362,1715605849464,-163.890621,0.00043314,7]
[326930363,1715605849474,-163.890621,0.00043314,7]
[326930364,1715605849483,-163.890621,0.00043314,7]
[326930365,1715605849492,-163.890621,0.00043314,7]
[326930366,1715605849502,-1066.47,0.00043318,2]
[326930367,1715605849511,-1066.47,0.00043318,2]
[326930368,1715605849520,-1066.47,0.00043318,2]